Cogmind - Beta 14 @@@ ROGUE MODE // 2024.09.07 @ 00:21:14 Player: KURIIRI Result: Self-destructed Performance ------------- Evolutions (1) 500 Regions Visited (3) 600 Robots Destroyed (24) 120 Value Destroyed (385) 385 Prototype IDs (3) 60 Alien Tech Used (0) 0 Bonus (0) 0 TOTAL SCORE: 1665 Bonus ------- None Cogmind --------- Core Integrity 400/400 Matter 300/300 Energy 250/250 System Corruption 0% Temperature Cool (0) Movement Rolling (105) Ox1 Location -9/Materials Parts ------- > --- POWER (1) -------- Ion Engine > --- PROPULSION (3) --- Wheel Compact Wheel > --- UTILITY (3) ------ Large Storage Unit > --- WEAPON (2) ------- Assault Rifle Assault Rifle > --- INVENTORY (15) --- Ion Engine Light Ion Engine Light Ion Engine Aluminum Leg Heat Sink Targeting Computer Shield Generator Shield Generator Hacking Suite Bomb Drone Bay Rocket Launcher Rocket Launcher Peak State ------------ > --- POWER ------------ Ion Engine > --- PROPULSION ------- Compact Wheel Compact Wheel > --- UTILITY ---------- Large Storage Unit Light Armor Plating > --- WEAPON ----------- Light EM Pulse Cannon Assault Rifle > --- INVENTORY -------- Ion Engine Light Ion Engine Light Ion Engine Aluminum Leg Heat Sink Shield Generator Shield Generator Shield Generator Shield Generator Medium Laser Light EM Pulse Cannon Assault Rifle Rocket Launcher Rocket Launcher [Rating: 10] Favorites ----------- Power Ion Engine Engine Ion Engine Propulsion Compact Wheel Wheel Compact Wheel Utility Large Storage Unit Device Heat Sink Storage Large Storage Unit Protection Light Armor Plating Weapon Assault Rifle Energy Gun Medium Laser Energy Cannon Light EM Pulse Cannon Ballistic Gun Assault Rifle Launcher Rocket Launcher Special Weapon Welding Torch Build | -11 -10 -10 -9 ------- Run | Yrd Mat Min Mat Slots Evolved 2 | . . . 2 Power . | . . . . Propulsion 1 | . . . 1 Utility 1 | . . . 1 Weapon . | . . . . Parts Attached 21 | 7 12 2 . Power 2 | 1 1 . . Engine 2 | 1 1 . . Core . | . . . . Reactor . | . . . . Propulsion 4 | 2 2 . . Treads . | . . . . Leg . | . . . . Wheel 4 | 2 2 . . Hover . | . . . . Flight . | . . . . Utility 4 | 1 3 . . Device 1 | . 1 . . Storage 2 | 1 1 . . Processor . | . . . . Hackware . | . . . . Protection 1 | . 1 . . Artifact . | . . . . Weapon 11 | 3 6 2 . Energy Gun 1 | 1 . . . Energy Cannon 3 | . 3 . . Ballistic Gun 5 | 2 2 1 . Ballistic Cannon . | . . . . Launcher 1 | . 1 . . Special Weapon 1 | . . 1 . Impact Weapon . | . . . . Slashing Weapon . | . . . . Piercing Weapon . | . . . . Special Melee Weapon . | . . . . Unidentified Prototypes . | . . . . Parts Lost 4 | . 4 . . Power . | . . . . Propulsion 1 | . 1 . . Utility 1 | . 1 . . Weapon 2 | . 2 . . Highest Loss Streak 3 | . 3 . . To Critical Strikes 1 | . 1 . . Average Slot Usage (%) 91 | . 94 85 . Engine 14 | . 14 14 . Wheel 27 | . 27 28 . Storage 14 | . 14 14 . Protection 5 | . 8 . . Energy Gun 3 | . 4 . . Energy Cannon 9 | . 13 . . Ballistic Gun 14 | . 8 27 . Peak Build Rating 10 | 6 10 9 . Average Rating 8 | 4 8 8 . On Entrance 5 | . 6 7 9 Naked Turns . | . . . . Heaviest Build 36 | 12 36 29 . Greatest Support 32 | 26 32 26 . Greatest Overweight (x) 2 | . 2 1 . Average Overweight (x) . | . . 1 . Largest Inventory Capacity 15 | 8 15 15 . Average Capacity 14 | 7 14 15 . Most Carried 15 | 2 15 14 . Average Carried 9 | 1 8 12 . Final Capacity 15 | 8 15 15 15 Final Carried 13 | 2 11 13 13 Class Distribution -------------------- 100% | Mutant Dominant Class ---------------- Mutant | -10/Materials Mutant | -10/Mines Mutant | -9/Materials Resources | -11 -10 -10 -9 ----------- Run | Yrd Mat Min Mat Matter Collected 640 | 195 308 137 . Remotely . | . . . . Salvage Created 919 | . 712 207 . Parts 58 | . 46 12 . Haulers Intercepted 2 | . 2 . . Recyclers Shooed 3 | . 2 1 . Parts Field Recycled . | . . . . Retrieved Matter . | . . . . Parts Self-Destructed . | . . . . Prevented . | . . . . Kills | -11 -10 -10 -9 ------- Run | Yrd Mat Min Mat Combat Hostiles Destroyed 15 | . 12 3 . Guns 7 | . 4 3 . Cannons 7 | . 7 . . AOE 1 | . 1 . . Classes Destroyed 7 | . 7 . . Builder 1 | . 1 . . Hauler 2 | . 2 . . Recycler 4 | . 3 1 . Operator 1 | . 1 . . Watcher 1 | . 1 . . Swarmer 9 | . 6 3 . Grunt 6 | . 6 . . Best Kill Streak 3 | . 3 3 . Combat Bots Only 3 | . 2 3 . Max Kills in Single Turn 2 | . 2 1 . Gunslinging . | . . . . Exploded 1 | . 1 . . Melee . | . . . . Uniques/NPCs Destroyed . | . . . . Combat | -11 -10 -10 -9 -------- Run | Yrd Mat Min Mat Hostile Shots Fired 85 | . 59 26 . Missed 27 | . 16 11 . Damage Taken 556 | . 437 119 . Core 118 | . 71 47 . Absorbed by Shields . | . . . . Core Remaining (%) 76 | 100 . 52 . Volleys Fired 80 | . 51 29 . Largest 2 | . 2 2 . Hottest 112 | . 112 40 . Shots Fired 138 | . 100 38 . Gun 75 | . 41 34 . Cannon 55 | . 55 . . Launcher 4 | . 4 . . Special 4 | . . 4 . Kinetic 59 | . 25 34 . Thermal 20 | . 16 4 . Explosive 4 | . 4 . . Electromagnetic 55 | . 55 . . Robot Hit Streak 8 | . 8 4 . Robot Miss Streak 4 | . 4 3 . Penetration Max . | . . . . Secondary Targets 2 | . 1 1 . Max Gunslinging Chain 1 | . 1 1 . Shots Hit Robots 80 | . 55 25 . Core Hits 31 | . 23 8 . Critical Kills . | . . . . Critical Parts Destroyed . | . . . . Critical Strikes 1 | . 1 . . Burn 1 | . 1 . . Melee Attacks . | . . . . Impact . | . . . . Slashing . | . . . . Piercing . | . . . . Sneak Attacks . | . . . . Combat Hostiles . | . . . . Follow-up Attacks . | . . . . Damage Inflicted 1528 | . 1243 285 . Guns 537 | . 260 277 . Cannons 781 | . 781 . . Explosions 196 | . 196 . . Melee . | . . . . Ramming 6 | . 6 . . Kinetic 449 | . 172 277 . Thermal 140 | . 132 8 . Explosive 152 | . 152 . . Electromagnetic 781 | . 781 . . Impact . | . . . . Slashing . | . . . . Piercing . | . . . . Highest Corruption 2 | . 2 2 . Average Corruption 2 | . 2 2 . Corruption Purged . | . . . . Corruption Blocked . | . . . . Effects 9 | . 1 8 . Message Errors 3 | . . 3 . Matter Fused 3 | . 1 2 . Heat Flow Errors 1 | . . 1 . Energy Discharges 1 | . . 1 . Data Loss (major) 1 | . . 1 . Overload Shots . | . . . . Overflow Damage 65 | . 65 . . Projectiles 65 | . 65 . . Explosions . | . . . . Melee . | . . . . Knockbacks . | . . . . Impact . | . . . . Kinetic . | . . . . Secondary . | . . . . Self-Inflicted Damage 3 | . 3 . . Shots . | . . . . Rammed 1 | . 1 . . Targets Rammed 1 | . 1 . . Kicked . | . . . . Crushed . | . . . . Highest Temperature 249 | . 249 246 . Average Temperature 88 | . 86 126 . Received Heat Transfer 123 | . 123 . . Siege Activations . | . . . . Robots Corrupted . | . . . . Combat Hostiles . | . . . . Parts Fried 3 | . 3 . . Impact Corruptions . | . . . . Robots Melted . | . . . . Combat Hostiles . | . . . . Parts Melted . | . . . . Heat Transferred 458 | . 383 75 . Parts Sabotaged . | . . . . Parts Stolen . | . . . . Parts Stripped . | . . . . Power Chain Reactions 1 | . 1 . . Alert | -11 -10 -10 -9 ------- Run | Yrd Mat Min Mat Peak Influence 173 | . 173 80 . Initial 31 | . . . 31 Average 59 | . 65 54 . Maximum Alert Level . | . . . . Low Security (%) 100 | 100 100 100 . Level 1 . | . . . . Level 2 . | . . . . Level 3 . | . . . . Level 4 . | . . . . Level 5 . | . . . . High Security . | . . . . Max Security . | . . . . Squads Dispatched 2 | . 2 . . Investigation 1 | . 1 . . Extermination . | . . . . Reinforcement 1 | . 1 . . Assault . | . . . . Garrison . | . . . . Intercept . | . . . . Searches Triggered . | . . . . Construction Impeded . | . . . . Haulers Reinforced . | . . . . Active Scanning Responses . | . . . . Cargo Convoy Interrupts . | . . . . Stealth | -11 -10 -10 -9 --------- Run | Yrd Mat Min Mat Distress Signals . | . . . . Communications Jammed . | . . . . Distress Signals . | . . . . Times Spotted 22 | . 19 3 . Peak Tracking Total 3 | . 3 3 . Tactical Retreats 2 | . 2 . . Traps | -11 -10 -10 -9 ------- Run | Yrd Mat Min Mat Traps Triggered 2 | . 2 . . Indirectly . | . . . . Trap Hack Attempts . | . . . . Triggered . | . . . . Disarmed . | . . . . Reprogrammed . | . . . . Reused . | . . . . Traps Extracted . | . . . . Installed . | . . . . Triggered . | . . . . Machines | -11 -10 -10 -9 ---------- Run | Yrd Mat Min Mat Machines Disabled . | . . . . Max in Single Turn . | . . . . Machines Repaired . | . . . . Machines Dismantled . | . . . . Machines Sabotaged . | . . . . Overloaded Fab Kills . | . . . . Hacking | -11 -10 -10 -9 --------- Run | Yrd Mat Min Mat Machines Accessed 6 | . 5 1 . Terminals 5 | . 5 . . Fabricators . | . . . . Repair Stations . | . . . . Recycling Units . | . . . . Scanalyzers . | . . . . Garrison Access . | . . . . Total Hacks 15 | . 14 1 . Successful 5 | . 4 1 . Failed 9 | . 9 . . Catastrophic 3 | . 3 . . Database Lockouts 1 | . 1 . . Manual 12 | . 12 . . Terminals 14 | . 14 . . Fabricators . | . . . . Repair Stations . | . . . . Recycling Units . | . . . . Scanalyzers . | . . . . Garrison Access . | . . . . Terminal Hacks 5 | . 4 1 . Robot Analysis 1 | . 1 . . Prototype ID Bank 1 | . 1 . . Open Door 1 | . . 1 . Branch Access Points 1 | . 1 . . Unreport Threat 1 | . 1 . . Fabricator Hacks . | . . . . Repair Station Hacks . | . . . . Recycling Unit Hacks . | . . . . Scanalyzer . | . . . . Garrison Access Hacks . | . . . . Unauthorized Hacks . | . . . . Terminals . | . . . . Fabricators . | . . . . Repair Stations . | . . . . Recycling Units . | . . . . Scanalyzers . | . . . . Garrison Access . | . . . . Data Cores Recovered 1 | . 1 . . Used 1 | . 1 . . Hacking Detections 5 | . 5 . . Full Trace Events . | . . . . Feedback Events . | . . . . Feedback Blocked . | . . . . Robot Schematics Acquired . | . . . . Robots Built . | . . . . Authchips . | . . . . Time . | . . . . Total Robot Build Rating . | . . . . Part Schematics Acquired . | . . . . Parts Built . | . . . . Authchips . | . . . . Time . | . . . . Total Part Build Rating . | . . . . Parts Repaired . | . . . . Time . | . . . . Parts Recycled . | . . . . Recycled Matter . | . . . . Retrieved Matter . | . . . . Retrieved Components . | . . . . Parts Scanalyzed . | . . . . Part Schematics Acquired . | . . . . Parts Damaged . | . . . . Bothacking | -11 -10 -10 -9 ------------ Run | Yrd Mat Min Mat Used RIF Installer . | . . . . Robots Hacked . | . . . . Non-combat . | . . . . Combat . | . . . . Robot Hacks Applied . | . . . . Relay Couplers Released . | . . . . Fabnet Peak Effective % . | . . . . Robots Rewired . | . . . . Allies Hacked . | . . . . Hacks Repelled . | . . . . Allies | -11 -10 -10 -9 -------- Run | Yrd Mat Min Mat Total Allies . | . . . . Largest Group . | . . . . Highest-Rated Group . | . . . . Highest-Rated Ally . | . . . . Total Orders . | . . . . Ally Attacks . | . . . . Total Damage . | . . . . Kills . | . . . . Allies Corrupted . | . . . . Allies Melted . | . . . . Intel | -11 -10 -10 -9 ------- Run | Yrd Mat Min Mat Robot Analysis Total 1 | . 1 . . Derelict Logs Recovered 1 | . . 1 . Drone Launches . | . . . . Drone Recoveries . | . . . . Exploration | -11 -10 -10 -9 ------------- Run | Yrd Mat Min Mat Turns Passed 1254 | 56 815 383 . Spaces Moved 864 | 50 518 296 . Core 3 | 3 . . . Treads . | . . . . Legs . | . . . . Wheels 861 | 47 518 296 . Hover . | . . . . Flight . | . . . . Fastest Speed 50 | 50 90 105 . Average Speed 106 | 87 109 105 . Slowest Speed 130 | 100 130 105 . Overloaded Moves . | . . . . Propulsion Burnouts . | . . . . Robots Hopped . | . . . . Cave-ins Triggered . | . . . . Exploration Rate (%) 42 | 4 94 70 1 Regions Visited 3 Branch Regions 1 Pre-discovered Areas . | . . . . Known Exits Taken 1 | . 1 . . Unknown Exits Taken 2 | 1 . 1 . Scrap Searched 2 | . . 2 . Spaces Dug . | . . . . Terrain Destroyed 46 | . 46 . . Melee . | . . . . Projectile . | . . . . AOE 46 | . 46 . . Terrain Rammed . | . . . . Walls Destroyed . | . . . . Machines Disabled . | . . . . Actions | -11 -10 -10 -9 --------- Run | Yrd Mat Min Mat Total 1052 | 58 665 329 . Wait 64 | . 64 . . Move 861 | 49 517 295 . Hop . | . . . . Pick Up 16 | 1 13 2 . Fast Attach 12 | 7 5 . . Attach 3 | . 2 1 . Detach 2 | 1 1 . . Swap 6 | . 5 1 . Drop 7 | . 6 1 . Fire 80 | . 51 29 . Melee . | . . . . Ram 1 | . 1 . . Kick . | . . . . Crush . | . . . . Escape Stasis . | . . . . Rewire . | . . . . Trap . | . . . . Miscellaneous . | . . . . Route ------- -11/Scrapyard -10/Materials (discovered 4 exits: [*Mat x3] / *Min) -10/Mines -9/Materials History --------- Turn | Location | Event 15 | -11/Scrapyard | Discovered new exit (range 16) 57 | -11/Scrapyard | Entered Materials 89 | -10/Materials | Discovered new exit (range 8) 196 | -10/Materials | Discovered new exit (range 7) 262 | -10/Materials | Discovered new exit (range 12) 314 | -10/Materials | Build established: Mutant 479 | -10/Materials | Central database locked down 489 | -10/Materials | Identified exit to Mines 557 | -10/Materials | Derelicts attacked the area 779 | -10/Materials | Discovered new exit (range 15) 788 | -10/Materials | Lost 3 parts (1u2w) 872 | -10/Materials | Entered Mines 926 | -10/Mines | Found the Drone Emporium 929 | -10/Mines | Found Prototype Device 1092 | -10/Mines | Learned Materials emergency access door positions 1224 | -10/Mines | Discovered new exit (range 6) 1255 | -10/Mines | Entered Materials 1255 | -9/Materials | Evolved 2 slots: Propulsion x1, Utility x1 1255 | -9/Materials | Self-destructed Last Messages --------------- 01022_ 8TN#ZVBT1HX=9N1K3Z1M4DVX|WCTC5N=7FGJHL 01022_ Acquired Welding Torch. 01030_ R-06 Scavenger destroyed. 01032_ Acquired 42 matter. 01046_ Dropped Welding Torch. 01092_ Acquired derelict log, extracted data. Data stored: Materials emergency access points. 01122_ Destroyed Tractor Beam. 01123_ K-01 Serf collects debris. 01128_ R-06 Scavenger destroyed. 01135_ Acquired 58 matter. 01146_ K-01 Serf collects debris. 01147_ System corrupted: Substantial component data lost. 01150_ K-01 Serf collects debris. 01210_ System corrupted: Energy discharge (-95). 01224_ EXIT=FOUND PARAMETERS=PROPULSION+1,UTILITY+1 LOCATION=UNKNOWN GOAL=ESCAPE Map ----- +----------------------------------------------------+ | | | | | | | | | | | | | | | ???????????????????????????????? | | ???????????????????????????????? | | ???????????????????????????????? | | ???????????????????????????????? | | ???????????????????????????????? | | ???????????????????????????????? | | ???????????????????????????????? | | ???????????????????????????????? | | ???????????????????????????????? | | ???????????????????????????????? | | ???????????????????????????????? | | ???????????????????????????????? | | ???????????????????????????????? | | ???????????????????????????????? | | ???????????????????????????????? | | ???????????????????????????????? | | ???????????????????????#####???? | | ???????????????????????# #???? | | ???????????????????????# @ #???? | | ???????????????????????# #???? | | ???????????????????????# #???? | | ???????????????????????# #???? | | ???????????????????????+ #???? | | ???????????????????????# #???? | | ???????????????????????# #???? | | ???????????????????????# #???? | | ???????????????????????# #???? | | ???????????????????????# #???? | | ???????????????????????# #???? | | ???????????????????????# #???? | | ???????????????????????# #???? | | ???????????????????????? ????? | | ???????????????????????? ????? | | ???????????????????????? ????? | | ???????????????????????????????? | | ???????????????????????????????? | | ???????????????????????????????? | | ???????????????????????????????? | | ???????????????????????????????? | | ???????????????????????????????? | | ???????????????????????????????? | | ???????????????????????????????? | | ???????????????????????????????? | +----------------------------------------------------+ Best States ------------- Heat Dissipation 35 Energy Generation 10 Energy Capacity 250 Matter Stores 300 Matter Capacity 300 Sight Range 16 Terrain Scan Density 10 Armor Coverage 150 Evasion (%) 42 Item Schematics ----------------- None Robot Schematics ------------------ None Fabricated ------------ Nothing Alien Tech Used ----------------- None Achievements -------------- None Challenges ------------ None Game ------ Seed InsulatedMicrowarpFrame Manual? 0 Play Time 00:16:14 Cumulative 63.6 hours Start 2024.09.05 @ 23:58:18 End 2024.09.07 @ 00:21:14 Sessions 9 Manual Loads 0 Difficulty Rogue Special Mode None Game No. 37 Rogue 1 Adventurer 36 Explorer 0 Win Type - Total 1 Types 1/0/0/0/0/0/0/0/0 Lore% 38 Gallery% 45 Achievement% 45 Wizard Run 0 Options --------- Layout 1 ASCII 0 Keyboard 0 Movement Numpad Keybinds 0 Fullscreen 1 Font 48/Smallcaps Map View 50x35 Zoom Use 0% Tactical HUD 1 Map Filters NONE Filters NONE Steam 1 RUN: 9e65f8a9-3864-425c-acfe-d59bf0bf6dd3